Cogmind - Beta 14 @@@ ROGUE MODE // 2024.08.08 @ 23:01:00 Player: FauxMaasks Result: Destroyed by L3-ZKY(R) with Subdweller Laser Performance ------------- Evolutions (0) 0 Regions Visited (2) 400 Robots Destroyed (23) 115 Value Destroyed (468) 468 Prototype IDs (0) 0 Alien Tech Used (0) 0 Bonus (0) 0 TOTAL SCORE: 983 Bonus ------- None Cogmind --------- Core Integrity 0/250 Matter 134/300 Energy 113/125 System Corruption 0% Temperature Cool (6) Movement Rolling (129) Ox2 Location -10/Subcaves Parts ------- > --- POWER (1) -------- Light Ion Engine > --- PROPULSION (2) --- Compact Wheel Subdweller Monowheel > --- UTILITY (2) ------ Huge Storage Unit > --- WEAPON (2) ------- Light Cannon Grenade Launcher > --- INVENTORY (25) --- Wheel Wheel Compact Wheel Propulsion Shielding Light Armor Plating Medium Laser Light Assault Rifle Light Assault Rifle Light Assault Rifle Light Cannon SUBCON Basin (Full) Peak State ------------ > --- POWER ------------ Light Ion Engine > --- PROPULSION ------- Compact Wheel Subdweller Monowheel > --- UTILITY ---------- Huge Storage Unit > --- WEAPON ----------- Light Assault Rifle Light Cannon > --- INVENTORY -------- Wheel Wheel Compact Wheel Propulsion Shielding Light Armor Plating Medium Laser Light Assault Rifle Light Assault Rifle Light Cannon Grenade Launcher SUBCON Basin [Rating: 26] Favorites ----------- Power Light Ion Engine Engine Light Ion Engine Propulsion Compact Wheel Wheel Compact Wheel Utility Huge Storage Unit Device Seismic Detector Storage Huge Storage Unit Protection Propulsion Shielding Weapon Light Assault Rifle Energy Gun Medium Laser Ballistic Gun Light Assault Rifle Ballistic Cannon Light Cannon Launcher Grenade Launcher Build | -11 -10 -10 ------- Run | Yrd Mat Sub Slots Evolved . | . . . Power . | . . . Propulsion . | . . . Utility . | . . . Weapon . | . . . Parts Attached 31 | 7 7 17 Power 4 | 1 1 2 Engine 4 | 1 1 2 Core . | . . . Reactor . | . . . Propulsion 7 | 2 2 3 Treads . | . . . Leg . | . . . Wheel 7 | 2 2 3 Hover . | . . . Flight . | . . . Utility 5 | 2 1 2 Device 2 | 1 . 1 Storage 2 | 1 1 . Processor . | . . . Hackware . | . . . Protection 1 | . . 1 Artifact . | . . . Weapon 15 | 2 3 10 Energy Gun 2 | 1 . 1 Energy Cannon . | . . . Ballistic Gun 7 | 1 2 4 Ballistic Cannon 1 | . . 1 Launcher 5 | . 1 4 Special Weapon . | . . . Impact Weapon . | . . . Slashing Weapon . | . . . Piercing Weapon . | . . . Special Melee Weapon . | . . . Unidentified Prototypes . | . . . Parts Lost 10 | . 3 7 Power 2 | . 1 1 Propulsion 3 | . 1 2 Utility 1 | . 1 . Weapon 4 | . . 4 Highest Loss Streak 5 | . 3 5 To Critical Strikes 1 | . . 1 Average Slot Usage (%) 87 | . 87 86 Engine 11 | . 11 12 Wheel 25 | . 26 24 Device 5 | . 5 5 Storage 14 | . 14 14 Energy Gun 3 | . 5 . Ballistic Gun 20 | . 22 18 Ballistic Cannon 3 | . . 8 Peak Build Rating 26 | 7 8 26 Average Rating 10 | 4 6 17 On Entrance 5 | . 7 8 Naked Turns . | . . . Heaviest Build 91 | 12 87 91 Greatest Support 36 | 26 32 36 Greatest Overweight (x) 27 | . 5 27 Average Overweight (x) 2 | . 2 2 Largest Inventory Capacity 25 | 8 25 25 Average Capacity 23 | 7 23 25 Most Carried 25 | 3 21 25 Average Carried 13 | 1 9 22 Final Capacity 25 | 8 25 25 Final Carried 25 | 1 21 25 Class Distribution -------------------- 95% | Mutant 4% | Scavenger-Mutant Dominant Class ---------------- Mutant | -10/Materials Mutant | -10/Subcaves Resources | -11 -10 -10 ----------- Run | Yrd Mat Sub Matter Collected 547 | 185 240 122 Remotely . | . . . Salvage Created 491 | 17 366 108 Parts 39 | 1 29 9 Haulers Intercepted 1 | . 1 . Recyclers Shooed 1 | . 1 . Parts Field Recycled . | . . . Retrieved Matter . | . . . Parts Self-Destructed 13 | . . 13 Prevented . | . . . Kills | -11 -10 -10 ------- Run | Yrd Mat Sub Combat Hostiles Destroyed 18 | . 13 5 Guns 14 | . 10 4 AOE 4 | . 3 1 Classes Destroyed 8 | 1 6 1 Worker 1 | . 1 . Tunneler 1 | 1 . . Hauler 1 | . 1 . Operator 1 | . 1 . Watcher 1 | . 1 . Swarmer 9 | . 9 . Grunt 4 | . 4 . Subdweller 5 | . . 5 Best Kill Streak 4 | 1 4 2 Combat Bots Only 4 | . 4 2 Max Kills in Single Turn 3 | 1 3 1 Gunslinging . | . . . Exploded 3 | . 3 1 Melee . | . . . Uniques/NPCs Destroyed . | . . . Combat | -11 -10 -10 -------- Run | Yrd Mat Sub Hostile Shots Fired 93 | . 60 33 Missed 18 | . 10 8 Damage Taken 1146 | . 494 652 Core 251 | . 96 155 Absorbed by Shields . | . . . Core Remaining (%) 100 | 100 . . Volleys Fired 83 | 5 45 33 Largest 2 | 2 2 2 Hottest 85 | 70 70 85 Shots Fired 154 | 10 89 55 Gun 135 | 10 88 37 Cannon 10 | . . 10 Launcher 9 | . 1 8 Special . | . . . Kinetic 123 | 5 75 43 Thermal 22 | 5 13 4 Explosive 9 | . 1 8 Electromagnetic . | . . . Robot Hit Streak 16 | 4 14 16 Robot Miss Streak 3 | 1 3 2 Penetration Max . | . . . Secondary Targets . | . . . Shots Hit Robots 106 | 7 61 38 Core Hits 46 | 2 29 15 Critical Kills 1 | . 1 . Critical Parts Destroyed . | . . . Critical Strikes 4 | . 4 . Burn 3 | . 3 . Destroy 1 | . 1 . Melee Attacks . | . . . Impact . | . . . Slashing . | . . . Piercing . | . . . Sneak Attacks . | . . . Combat Hostiles . | . . . Follow-up Attacks . | . . . Damage Inflicted 1248 | 76 654 518 Guns 873 | 76 545 252 Cannons 80 | . . 80 Explosions 295 | . 109 186 Melee . | . . . Ramming . | . . . Kinetic 737 | 26 404 307 Thermal 216 | 50 141 25 Explosive 295 | . 109 186 Electromagnetic . | . . . Impact . | . . . Slashing . | . . . Piercing . | . . . Highest Corruption . | . . . Average Corruption . | . . . Corruption Purged . | . . . Corruption Blocked . | . . . Overload Shots . | . . . Overflow Damage . | . . . Projectiles . | . . . Explosions . | . . . Melee . | . . . Knockbacks 1 | . . 1 Impact . | . . . Kinetic 1 | . . 1 Secondary . | . . . Self-Inflicted Damage 72 | . 31 41 Shots 4 | . 1 3 Rammed . | . . . Targets Rammed . | . . . Kicked . | . . . Crushed . | . . . Highest Temperature 378 | 50 94 378 Average Temperature 77 | 25 38 205 Received Heat Transfer 757 | . 114 643 Effects 1 | . . 1 Shutdowns 1 | . . 1 Siege Activations . | . . . Robots Corrupted . | . . . Combat Hostiles . | . . . Parts Fried . | . . . Impact Corruptions . | . . . Robots Melted . | . . . Combat Hostiles . | . . . Parts Melted 1 | 1 . . Heat Transferred 851 | 148 629 74 Parts Sabotaged . | . . . Parts Stolen . | . . . Parts Stripped . | . . . Power Chain Reactions . | . . . Alert | -11 -10 -10 ------- Run | Yrd Mat Sub Peak Influence 212 | 5 212 . Initial 3 | . 3 . Average 89 | . 94 . Maximum Alert Level 1 | . 1 . Low Security (%) 98 | 100 98 . Level 1 1 | . 1 . Level 2 . | . . . Level 3 . | . . . Level 4 . | . . . Level 5 . | . . . High Security . | . . . Max Security . | . . . Squads Dispatched 3 | . 3 . Investigation 2 | . 2 . Extermination . | . . . Reinforcement 1 | . 1 . Assault . | . . . Garrison . | . . . Intercept . | . . . Searches Triggered . | . . . Construction Impeded . | . . . Haulers Reinforced . | . . . Active Scanning Responses . | . . . Cargo Convoy Interrupts . | . . . Stealth | -11 -10 -10 --------- Run | Yrd Mat Sub Distress Signals 2 | . 2 . Communications Jammed . | . . . Distress Signals . | . . . Times Spotted 30 | . 24 6 Peak Tracking Total 5 | . 5 2 Tactical Retreats 3 | . 3 . Traps | -11 -10 -10 ------- Run | Yrd Mat Sub Traps Triggered 3 | . 2 1 Indirectly . | . . . Trap Hack Attempts . | . . . Triggered . | . . . Disarmed . | . . . Reprogrammed . | . . . Reused . | . . . Traps Extracted . | . . . Installed . | . . . Triggered . | . . . Machines | -11 -10 -10 ---------- Run | Yrd Mat Sub Machines Disabled . | . . . Max in Single Turn . | . . . Machines Repaired . | . . . Machines Dismantled . | . . . Machines Sabotaged . | . . . Overloaded Fab Kills . | . . . Hacking | -11 -10 -10 --------- Run | Yrd Mat Sub Machines Accessed 9 | . 7 2 Terminals 7 | . 7 . Fabricators . | . . . Repair Stations . | . . . Recycling Units . | . . . Scanalyzers . | . . . Garrison Access . | . . . Total Hacks 19 | . 16 3 Successful 12 | . 9 3 Failed 7 | . 7 . Catastrophic 1 | . 1 . Database Lockouts . | . . . Manual 10 | . 10 . Terminals 16 | . 16 . Fabricators . | . . . Repair Stations . | . . . Recycling Units . | . . . Scanalyzers . | . . . Garrison Access . | . . . Terminal Hacks 10 | . 7 3 Record 3 | . 2 1 Robot Analysis 3 | . 3 . Open Door 1 | . . 1 Locate Traps 1 | . 1 . Maintenance Status 1 | . 1 . Release Object 1 | . . 1 Fabricator Hacks . | . . . Repair Station Hacks . | . . . Recycling Unit Hacks . | . . . Scanalyzer . | . . . Garrison Access Hacks . | . . . Unauthorized Hacks 2 | . 2 . Terminals 2 | . 2 . Botnet 2 | . 2 . Fabricators . | . . . Repair Stations . | . . . Recycling Units . | . . . Scanalyzers . | . . . Garrison Access . | . . . Data Cores Recovered 1 | . 1 . Used . | . . . Hacking Detections 5 | . 5 . Full Trace Events . | . . . Feedback Events . | . . . Feedback Blocked . | . . . Robot Schematics Acquired . | . . . Robots Built . | . . . Authchips . | . . . Time . | . . . Total Robot Build Rating . | . . . Part Schematics Acquired . | . . . Parts Built . | . . . Authchips . | . . . Time . | . . . Total Part Build Rating . | . . . Parts Repaired . | . . . Time . | . . . Parts Recycled . | . . . Recycled Matter . | . . . Retrieved Matter . | . . . Retrieved Components . | . . . Parts Scanalyzed . | . . . Part Schematics Acquired . | . . . Parts Damaged . | . . . Bothacking | -11 -10 -10 ------------ Run | Yrd Mat Sub Used RIF Installer . | . . . Robots Hacked . | . . . Non-combat . | . . . Combat . | . . . Robot Hacks Applied . | . . . Relay Couplers Released . | . . . Fabnet Peak Effective % . | . . . Robots Rewired . | . . . Allies Hacked . | . . . Hacks Repelled . | . . . Allies | -11 -10 -10 -------- Run | Yrd Mat Sub Total Allies . | . . . Largest Group . | . . . Highest-Rated Group . | . . . Highest-Rated Ally . | . . . Total Orders . | . . . Ally Attacks . | . . . Total Damage . | . . . Kills . | . . . Allies Corrupted . | . . . Allies Melted . | . . . Intel | -11 -10 -10 ------- Run | Yrd Mat Sub Robot Analysis Total 3 | . 3 . Derelict Logs Recovered . | . . . Drone Launches . | . . . Drone Recoveries . | . . . Exploration | -11 -10 -10 ------------- Run | Yrd Mat Sub Turns Passed 2152 | 69 1351 732 Spaces Moved 1358 | 49 868 441 Core 4 | 1 . 3 Treads . | . . . Legs . | . . . Wheels 1354 | 48 868 438 Hover . | . . . Flight . | . . . Fastest Speed 50 | 50 90 129 Average Speed 131 | 88 130 139 Slowest Speed 1400 | 90 175 1400 Overloaded Moves . | . . . Propulsion Burnouts . | . . . Robots Hopped . | . . . Cave-ins Triggered . | . . . Exploration Rate (%) 42 | 4 99 25 Regions Visited 2 Branch Regions 1 Pre-discovered Areas 1 | . . 1 Known Exits Taken . | . . . Unknown Exits Taken 2 | 1 1 . Scrap Searched . | . . . Spaces Dug 36 | . 9 27 Terrain Destroyed 69 | . 9 60 Melee . | . . . Projectile 1 | . . 1 AOE 68 | . 9 59 Terrain Rammed . | . . . Walls Destroyed . | . . . Machines Disabled . | . . . Actions | -11 -10 -10 --------- Run | Yrd Mat Sub Total 1586 | 63 1013 510 Wait 78 | . 74 4 Move 1356 | 48 867 441 Hop . | . . . Pick Up 26 | 3 19 4 Fast Attach 11 | 5 3 3 Attach 7 | 2 . 5 Detach . | . . . Swap 13 | . 4 9 Drop 12 | . 1 11 Fire 83 | 5 45 33 Melee . | . . . Ram . | . . . Kick . | . . . Crush . | . . . Escape Stasis . | . . . Rewire . | . . . Trap . | . . . Miscellaneous . | . . . Route ------- -11/Scrapyard -10/Materials (discovered 5 exits: [*Mat x3] / [*Min] / *Sub) -10/Subcaves History --------- Turn | Location | Event 22 | -11/Scrapyard | Discovered new exit (range 16) 70 | -11/Scrapyard | Entered Materials 260 | -10/Materials | Discovered new exit (range 8) 308 | -10/Materials | Build established: Mutant 404 | -10/Materials | Discovered new exit (range 5) 680 | -10/Materials | Lost 3 parts (1p1n1u) 1106 | -10/Materials | Discovered new exit (range 11) 1309 | -10/Materials | Discovered new exit (range 6) 1387 | -10/Materials | Discovered new exit (range 9) 1421 | -10/Materials | Entered Subcaves 1423 | -10/Subcaves | Shifting Twisted Machinery released Sub. Power Source 1430 | -10/Subcaves | Shifting Twisted Machinery released Sub. Power Source 1507 | -10/Subcaves | Learned location of Zion (-7) 1507 | -10/Subcaves | Met a Zionite searching for "candidates" 1616 | -10/Subcaves | Lost 5 parts (1p2n2w) 1670 | -10/Subcaves | A swath of the cavern ceiling suddenly collapsed 1683 | -10/Subcaves | Core integrity fell below 50% 1695 | -10/Subcaves | Core integrity fell below 20% 1794 | -10/Subcaves | Found SUBCON Basin 2128 | -10/Subcaves | Ambushed by Subdweller buried in earth 2153 | -10/Subcaves | Ambushed by Subdweller buried in earth 2153 | -10/Subcaves | Destroyed by L3-ZKY(R) with Subdweller Laser Last Messages --------------- 01790_ Dropped Sub. Power Source. 01790_ Dropped Wheel. 01791_ Dropped Hcp. Storage Unit. 01791_ Dropped Sub. Optics. 01792_ Dropped Propulsion Shielding. 01792_ Dropped Lgt. Assault Rifle. 01793_ Dropped Scrap Shield Fragment. 01794_ Acquired SUBCON Basin. 01797_ Acquired Lgt. Assault Rifle. 01844_ Acquired 1 matter. 01876_ Subatomizers dissect the Sub. Optics. 01890_ Subatomizers dissect the Sub. Optics, destroying it. 02129_ JI-DDD(R): "ARGHSUB!" 02134_ The unstable cave ceiling collapses. 02140_ JI-DDD(R) knocked back. 02142_ The unstable cave ceiling collapses. 02143_ JI-DDD(R) destroyed. 02144_ The unstable cave ceiling collapses. 02146_ Acquired 33 matter. 02147_ Acquired 5 matter. Map ----- +----------------------------------------------------+ | ?????????????????????????????????????????????????? | | ?????????????????????????????????????????????????? | | ?????????????????????????????????????????????????? | | ?????????????????????????????????????????????????? | | ?????????????????????????????????????????????????? | | ?????????????????????????????????????????????????? | | ?????????????????????????????????????????????????? | | ?????????????????????????????????????????????????? | | ?????????????????????????????????????????????????? | | ?????????????????????????????????????????????????? | | ?????????????????????????????????????????????????? | | ?????????????????????????????????????????????????? | | ?????????????????????????????????????????????????? | | ?????????????????????????????????????????????????? | | ?????????????????????????????????????????????????? | | ?????????????????????????????????????????????????? | | ?????????????????????????????????????????????????? | | ?????????????????????????????????????????????????? | | ??????????????????#########??????????????????????? | | ??????????????????# # ##?????????????????????? | | ??????????????????# #?????????????????????? | | ??????????????????# ##???????????????????? | | ??????????????????# # #???????????####????"" | | ??????????????????#R ! ##????? ?????## ##### | | ??????????????????# &###??? #???? " | | ???????????????????# @ ##??? "##??? | | ???????????????????## ##??#""#???# | | ????????????????????# ## #??#""##### | | ????????????????????### ####""# ## #??? | | ?????????????????????# "##""""" #???? | | ?????????????????????# """ " & ##??? | | ?????????????????????# "## " ## # | | ?????????????????????# *### # | | ?????????????????????# " ## | | ?????????????????????# """ " ##?# | | ?????????????????????# "" #"##### ##???# | | ?????????????????????## " ###???#"""" ####### | | ??????????????????????# ##???## *" ### | | ??????????????????????## " ###??# " | | ???????????????????????# " #??##"" | | ??????????????????????? #?##### ###### | | ???????########??###?## ?## ### #????? | | #??##### # #### ### ## ?## ###### | | ##?# #?# ??# | | #?## ### ???# ### | | ??# # # # #? #???# ##?# | | #?### ! ############ ##?# #???### ##### | | ### #??????????### #### #?????# ##?# | | ##???????????## ## #####?# #?# ## | | ##??????????# ## ### ## #?## # | +----------------------------------------------------+ Best States ------------- Heat Dissipation 25 Energy Generation 15 Energy Capacity 250 Matter Stores 300 Matter Capacity 300 Sight Range 21 Terrain Scan Density 10 Propulsion Shielding 33 Evasion (%) 42 Item Schematics ----------------- None Robot Schematics ------------------ None Fabricated ------------ Nothing Alien Tech Used ----------------- None Achievements -------------- None Challenges ------------ None Game ------ Seed NuclearDefenseUnit Manual? 0 Play Time 00:19:40 Cumulative 125.4 hours Start 2024.08.08 @ 22:08:06 End 2024.08.08 @ 23:01:00 Sessions 5 Manual Loads 0 Difficulty Rogue Special Mode None Game No. 34 Rogue 15 Adventurer 17 Explorer 2 Win Type - Total 3 Types 2/0/1/0/0/0/0/0/0 Lore% 43 Gallery% 58 Achievement% 57 Wizard Run 0 Options --------- Layout 2 ASCII 0 Keyboard 1 Movement Vi Keybinds 0 Fullscreen 0 Font 20/SmallcapsGlow Map View 64x51 Zoom Use 0% Tactical HUD 1 Map Filters NONE Filters NONE Steam 1 RUN: af05b4f7-5807-4c70-957b-097409128c94